bitfinex/quotes_BTCUSD_20250730
["timestamp","ask_amount","ask_price","bid_price","bid_amount"]
[1753839957233,0.0602,118060.0,118050.0,0.99756389]
[1753839957443,0.0602,118060.0,118050.0,0.99157816]
[1753839958615,0.0602,118060.0,118050.0,1.24141649]
[1753839958824,0.0602,118060.0,118050.0,1.24141664]
[1753839959098,0.0602,118060.0,118050.0,1.25835796]
[1753839959288,0.0602,118060.0,118050.0,1.26682844]
[1753839959701,0.0602,118060.0,118050.0,1.26382844]
[1753839959922,0.0602,118060.0,118050.0,1.2553581]
[1753839960131,0.0602,118060.0,118050.0,1.26882872]
[1753839960354,0.0602,118060.0,118050.0,1.24988741]
[1753839960569,0.0602,118060.0,118050.0,1.2583581]
[1753839960771,0.0602,118060.0,118050.0,1.26982872]
[1753839960986,0.0602,118060.0,118050.0,1.2444165]
[1753839961192,0.0602,118060.0,118050.0,1.25288719]
[1753839961599,0.0602,118060.0,118050.0,1.01999046]
[1753839962382,0.0602,118060.0,118050.0,1.02846108]
[1753839962581,0.0602,118060.0,118050.0,1.03693163]
[1753839962812,0.0602,118060.0,118050.0,1.01999046]
[1753839963010,0.0602,118060.0,118050.0,1.02846108]
[1753839963245,0.0602,118060.0,118050.0,1.003049]
[1753839963658,0.0602,118060.0,118050.0,1.265649]
[1753839963874,0.0602,118060.0,118050.0,1.27411969]
[1753839964271,0.0602,118060.0,118050.0,1.27411977]
[1753839964706,0.0602,118060.0,118050.0,1.28259046]
[1753839964924,0.0602,118060.0,118050.0,1.27411977]
[1753839965135,0.0602,118060.0,118050.0,1.27163473]
[1753839965376,0.0602,118060.0,118050.0,1.265649]
[1753839965585,0.0602,118060.0,118050.0,1.27411977]
[1753839965998,0.0602,118060.0,118050.0,1.28259046]
[1753839966207,0.0602,118060.0,118050.0,1.265649]
[1753839966438,0.0602,118060.0,118050.0,1.26564907]
[1753839966905,0.0602,118060.0,118050.0,1.51548712]
[1753839967133,0.0602,118060.0,118050.0,1.5239576]
[1753839967367,0.0602,118060.0,118050.0,1.8639576]
[1753839967810,0.0002,118070.0,118060.0,1.32543417]
[1753839968043,0.0002,118070.0,118060.0,2.52196166]
[1753839968044,0.00024846,118070.0,118060.0,2.52196166]
[1753839968274,0.00024846,118070.0,118060.0,2.54693166]
[1753839968500,0.0178907,118120.0,118060.0,2.54693166]
[1753839968501,0.64550005,118130.0,118110.0,0.0138796]
[1753839968719,4.61015295,118130.0,118120.0,0.13064]
[1753839968936,0.00048495,118130.0,118120.0,0.42830211]
[1753839969153,0.00048495,118130.0,118120.0,0.19540538]
[1753839969377,0.01786014,118130.0,118120.0,0.18941965]
[1753839969591,0.00048495,118130.0,118120.0,0.18941965]
[1753839969819,0.25064982,118130.0,118120.0,0.18941965]
[1753839970046,0.00048495,118130.0,118120.0,0.27389695]
[1753839971402,0.01712782,118130.0,118120.0,0.50679368]
[1753839971945,0.00048495,118130.0,118120.0,0.73969041]
[1753839972398,0.00048495,118130.0,118120.0,0.33376695]
[1753839972620,0.00048495,118130.0,118120.0,0.79956041]
[1753839972845,0.00048495,118130.0,118120.0,0.33376695]
[1753839973070,0.00048495,118130.0,118120.0,0.64380154]
[1753839973286,0.00048495,118130.0,118120.0,0.20312695]
[1753839973504,0.00048495,118130.0,118120.0,0.64144154]
[1753839973718,0.00048495,118130.0,118120.0,0.33140695]
[1753839973942,0.00048495,118130.0,118120.0,0.64144154]
[1753839974423,0.00048495,118130.0,118120.0,0.33140695]
[1753839974650,0.00048495,118130.0,118120.0,0.64144154]
[1753839974882,0.00048495,118130.0,118120.0,0.51016154]
[1753839975097,0.00048495,118130.0,118120.0,0.2546069]
[1753839975313,0.00048495,118130.0,118120.0,0.27457695]
[1753839975771,0.31051954,118130.0,118120.0,0.12937735]
[1753839976226,0.68489812,118130.0,118120.0,0.26069735]
[1753839976448,0.68489812,118130.0,118120.0,0.26073735]
[1753839976670,0.67643323,118130.0,118120.0,0.27461695]
[1753839976895,0.68489812,118130.0,118120.0,0.27461695]
[1753839977118,0.69336293,118130.0,118120.0,0.2158373]
[1753839977348,0.71029321,118130.0,118120.0,0.1314]
[1753839977583,0.68489855,118130.0,118110.0,0.04490005]
[1753839977806,0.68489798,118130.0,118120.0,0.1452796]
[1753839978042,0.37486339,118130.0,118120.0,0.1452796]
[1753839978265,0.67643316,118130.0,118120.0,0.1452796]
[1753839978478,0.66796856,118130.0,118120.0,0.1452796]
[1753839978937,0.35793397,118130.0,118120.0,0.1452796]
[1753839979158,0.34048495,118130.0,118120.0,0.60952154]
[1753839979380,0.34048495,118130.0,118120.0,0.64667154]
[1753839979620,0.00048495,118130.0,118120.0,0.33663695]
[1753839979836,0.00048495,118130.0,118120.0,0.64667154]
[1753839982593,0.00048495,118130.0,118120.0,0.33663695]
[1753839982815,0.00048495,118130.0,118120.0,0.64667154]
[1753839983037,0.00048495,118130.0,118120.0,0.33663695]
[1753839983258,0.00048495,118130.0,118120.0,0.64667154]
[1753839986510,0.00048495,118130.0,118120.0,0.33663695]
[1753839986730,0.00048495,118130.0,118120.0,0.64667154]
[1753839986951,0.00048495,118130.0,118120.0,0.33663695]
[1753839987650,0.00048495,118130.0,118120.0,0.64667154]
[1753839995097,0.00048495,118130.0,118120.0,0.33663695]
[1753839995498,0.00048495,118130.0,118120.0,0.20319695]
[1753839995704,0.00048495,118130.0,118120.0,0.30265695]
[1753839995908,0.00048495,118130.0,118120.0,0.31775695]
[1753839996513,0.00048495,118130.0,118120.0,0.33335695]
[1753840000339,0.00048495,118130.0,118120.0,0.33539695]
[1753840000587,0.00048495,118130.0,118120.0,0.33535695]
[1753840001091,0.00048495,118130.0,118120.0,0.64539154]
[1753840004891,0.00048495,118130.0,118120.0,0.33535695]
[1753840005111,0.00048495,118130.0,118120.0,0.64539154]
[1753840009063,0.00048495,118130.0,118120.0,0.33535695]
[1753840009712,0.00048495,118130.0,118120.0,0.64539154]
[1753840009927,0.00048495,118130.0,118120.0,0.65137727]
[1753840010243,0.00048495,118130.0,118120.0,0.64539154]
[1753840011318,0.00048495,118130.0,118120.0,0.33535695]
[1753840011533,0.00048495,118130.0,118120.0,0.64539154]
[1753840011972,0.00048495,118130.0,118120.0,0.95542613]
[1753840013063,0.00048495,118130.0,118120.0,1.13991987]
[1753840013278,0.00048495,118130.0,118120.0,1.15685158]
[1753840013706,0.00048495,118130.0,118120.0,1.16531726]
[1753840014393,0.00048495,118130.0,118120.0,1.15685158]
[1753840014602,0.00048495,118130.0,118120.0,1.16531726]
[1753840014818,0.00048495,118130.0,118120.0,1.15685158]
[1753840015260,0.00048495,118130.0,118120.0,1.17378286]
[1753840016319,0.00048495,118130.0,118120.0,1.17378286]
[1753840016792,0.00048495,118130.0,118120.0,1.16531726]
[1753840017002,0.00048495,118130.0,118120.0,1.17378286]
[1753840017422,0.00048495,118130.0,118120.0,1.18224832]
[1753840019003,0.00048495,118130.0,118120.0,1.78484832]
[1753840021351,0.00048495,118130.0,118120.0,1.83484832]
[1753840022688,0.00048495,118130.0,118120.0,1.83584832]
[1753840022945,0.00048495,118130.0,118120.0,1.83884832]
[1753840023159,0.00048495,118130.0,118120.0,1.84484832]
[1753840023374,0.00048495,118130.0,118120.0,1.58224832]
[1753840024197,0.00048495,118130.0,118120.0,1.56531726]
[1753840024479,0.00048495,118130.0,118120.0,1.32088054]
[1753840024918,0.00048495,118130.0,118120.0,1.32100054]
[1753840025349,0.00048495,118130.0,118120.0,1.01100595]
[1753840025640,0.00048495,118130.0,118120.0,0.21003695]
[1753840025847,0.00048495,118130.0,118120.0,0.64583154]
[1753840026287,0.00048495,118130.0,118120.0,0.33779695]
[1753840026499,0.00048495,118130.0,118120.0,0.65211154]
[1753840027996,0.00048495,118130.0,118120.0,0.21003695]
[1753840028202,0.00048495,118130.0,118120.0,0.32811735]
[1753840028406,0.00048495,118130.0,118120.0,0.65203154]
[1753840028821,0.00048495,118130.0,118120.0,0.34199695]
[1753840029033,0.00048495,118130.0,118120.0,0.66548733]
[1753840029496,0.00048495,118130.0,118120.0,0.66148733]
[1753840029712,0.00048495,118130.0,118120.0,0.97352192]
[1753840029923,0.00048495,118130.0,118120.0,0.98498788]
[1753840030132,0.00048495,118130.0,118120.0,1.17123863]
[1753840030341,0.00048495,118130.0,118120.0,1.03927878]
[1753840030557,0.00048495,118130.0,118120.0,1.17978431]
[1753840031193,0.00048495,118130.0,118120.0,1.17131871]
[1753840031402,0.00048495,118130.0,118120.0,1.17978431]
[1753840031848,0.00048495,118130.0,118120.0,1.17131871]
[1753840032060,0.00048495,118130.0,118120.0,1.17131878]
[1753840032481,0.00048495,118130.0,118120.0,1.18825006]
[1753840032677,0.00048495,118130.0,118120.0,1.18577019]
[1753840032882,0.00048495,118130.0,118120.0,1.17978446]
[1753840033165,0.00048495,118130.0,118120.0,1.16285303]
[1753840033592,0.00048495,118130.0,118120.0,1.17131878]
[1753840034222,0.00048495,118130.0,118120.0,1.16285303]
[1753840034867,0.00048495,118130.0,118120.0,1.42545303]
[1753840035738,0.00048495,118130.0,118120.0,1.43391878]
[1753840035959,0.00048495,118130.0,118120.0,1.45084984]
[1753840036171,0.00048495,118130.0,118120.0,1.79084984]
[1753840036811,0.00048495,118130.0,118120.0,1.78784984]
[1753840037468,0.00048495,118130.0,118120.0,1.79284984]
[1753840038764,0.00048495,118130.0,118120.0,1.79084984]
[1753840039190,0.00048495,118130.0,118120.0,1.79384984]
[1753840042715,0.00048495,118130.0,118120.0,1.86129886]
[1753840045225,0.00048495,118130.0,118120.0,1.8528334]
[1753840045439,0.00048495,118130.0,118120.0,1.85283319]
[1753840047344,0.00048495,118130.0,118120.0,1.84436773]
[1753840047552,0.00048495,118130.0,118120.0,1.85283319]
[1753840054412,0.00048495,118130.0,118120.0,1.84983319]
[1753840054874,0.00048495,118130.0,118120.0,1.85383319]
[1753840055099,0.0195,118140.0,118130.0,0.19469987]
[1753840055321,0.01954846,118140.0,118130.0,0.79576136]
[1753840055966,0.01954846,118140.0,118130.0,0.84066141]
[1753840056288,0.00553393,118150.0,118140.0,0.28556305]
[1753840056498,0.00553393,118150.0,118140.0,1.72654953]
[1753840056718,0.00553393,118150.0,118140.0,1.80311953]
[1753840058241,0.00553393,118150.0,118140.0,1.82356855]
[1753840058454,0.0002,118170.0,118160.0,0.90559926]
[1753840058678,0.00024843,118170.0,118160.0,1.12391656]
[1753840058900,0.00024843,118170.0,118160.0,1.15048656]
[1753840059108,0.00024843,118170.0,118160.0,1.15048664]
[1753840059327,0.00024843,118170.0,118160.0,1.15048671]
[1753840059547,0.00024843,118170.0,118160.0,1.01034397]
[1753840059768,0.00024843,118170.0,118160.0,1.18392293]
[1753840060027,0.00024843,118170.0,118160.0,1.18592293]
[1753840060242,0.00024843,118170.0,118160.0,1.18992293]
[1753840060679,0.00024843,118170.0,118160.0,1.45252293]
[1753840061151,0.00024843,118170.0,118160.0,1.45052293]
[1753840061359,0.00024843,118170.0,118160.0,1.45352293]
[1753840061547,0.00024843,118170.0,118160.0,1.44952293]
[1753840061689,0.00024843,118170.0,118160.0,1.45452293]
[1753840062318,0.00024843,118170.0,118160.0,0.94458798]
[1753840062527,0.00024843,118170.0,118160.0,0.93612496]
[1753840062942,0.00024843,118170.0,118160.0,0.80432496]
[1753840063159,0.00024843,118170.0,118160.0,0.90768496]
[1753840063565,0.00024843,118170.0,118160.0,0.91168496]
[1753840063824,0.00024843,118170.0,118160.0,0.93512496]
[1753840064357,0.00024843,118170.0,118160.0,0.80332496]
[1753840064565,0.00024843,118170.0,118160.0,0.91172496]
[1753840064939,0.00024843,118170.0,118160.0,1.08944999]
[1753840065113,0.00024843,118170.0,118160.0,1.11289007]
[1753840065320,0.00024843,118170.0,118160.0,0.98105007]
[1753840065515,0.00024843,118170.0,118160.0,0.93516496]
[1753840065939,0.00024843,118170.0,118160.0,1.1244828]
[1753840066149,0.00024843,118170.0,118160.0,1.13294568]
[1753840066366,0.00024843,118170.0,118160.0,1.45144322]
[1753840066568,0.00024843,118170.0,118160.0,1.43998041]
[1753840066769,0.00024843,118170.0,118160.0,1.42305458]
[1753840066971,0.00024843,118170.0,118160.0,1.42721458]
[1753840067187,0.00024843,118170.0,118160.0,1.11717999]
[1753840067644,0.00024843,118170.0,118160.0,1.10871697]
[1753840067852,0.00024843,118170.0,118160.0,1.11718007]
[1753840068047,0.00024843,118170.0,118160.0,0.93945496]
[1753840068472,0.00024843,118170.0,118160.0,1.25795257]
[1753840068686,0.00024843,118170.0,118160.0,1.25795265]
[1753840068879,0.00024843,118170.0,118160.0,1.43567768]
[1753840069824,0.00024843,118170.0,118160.0,1.44414063]
[1753840070041,0.00024843,118170.0,118160.0,1.43567768]
[1753840070249,0.00024843,118170.0,118160.0,1.12564309]
[1753840070455,0.00024843,118170.0,118160.0,1.13410604]
[1753840070888,0.00024843,118170.0,118160.0,1.14256892]
[1753840071095,0.00024843,118170.0,118160.0,0.93945496]
[1753840071323,0.00024843,118170.0,118160.0,1.25795265]
[1753840071531,0.00024843,118170.0,118160.0,1.24948955]
[1753840071740,0.00024843,118170.0,118160.0,1.42721466]
[1753840072583,0.00024843,118170.0,118160.0,1.41875156]
[1753840073336,0.00024843,118170.0,118160.0,1.24948955]
[1753840073559,0.00024843,118170.0,118160.0,0.93945496]
[1753840075059,0.00024843,118170.0,118160.0,0.93925496]
[1753840075267,0.00024843,118170.0,118160.0,0.62918037]
[1753840075546,0.00024843,118170.0,118160.0,0.93921496]
[1753840075783,0.00024843,118170.0,118160.0,1.24924955]
[1753840076019,0.00024843,118170.0,118160.0,0.92278464]
[1753840076734,0.00024843,118170.0,118160.0,0.61275005]
[1753840076973,0.00024843,118170.0,118160.0,1.24128225]
[1753840077186,0.00024843,118170.0,118160.0,1.23281923]
[1753840077610,0.00024843,118170.0,118160.0,1.21331923]
[1753840077821,0.00024843,118170.0,118160.0,1.20485613]
[1753840078239,0.00024843,118170.0,118160.0,1.21331923]
[1753840078448,0.00024843,118170.0,118160.0,1.20485613]
[1753840078655,0.00024843,118170.0,118160.0,1.21331923]
[1753840078915,0.00024843,118170.0,118160.0,1.20485613]
[1753840079121,0.00024843,118170.0,118160.0,1.21331923]
[1753840079320,0.00024843,118170.0,118160.0,1.22178225]
[1753840079897,0.00024843,118170.0,118160.0,1.20485613]
[1753840080301,0.00024843,118170.0,118160.0,1.39104426]
[1753840080509,0.00024843,118170.0,118160.0,1.39838124]
[1753840080704,0.00024843,118170.0,118160.0,0.76106154]
[1753840080911,0.00024843,118170.0,118160.0,0.88969154]
[1753840081361,0.00024843,118170.0,118160.0,0.89290154]
[1753840081710,0.00024843,118170.0,118160.0,0.89486154]
[1753840081921,0.00024843,118170.0,118160.0,0.91076154]
[1753840082120,0.00024843,118170.0,118160.0,0.64816154]
[1753840082328,0.00024843,118170.0,118160.0,1.13592116]
[1753840082567,0.00024843,118170.0,118160.0,1.14438411]
[1753840082778,0.00024843,118170.0,118160.0,0.97512225]
[1753840082989,0.00024843,118170.0,118160.0,0.96465923]
[1753840083185,0.00024843,118170.0,118160.0,0.95619613]
[1753840083458,0.00024843,118170.0,118160.0,0.82743613]
[1753840083584,0.00024843,118170.0,118160.0,0.64920154]
[1753840083774,0.00024843,118170.0,118160.0,0.64520154]
[1753840084212,0.00024843,118170.0,118160.0,0.65020154]
[1753840084425,0.00024843,118170.0,118160.0,1.14642397]
[1753840084835,0.00024843,118170.0,118160.0,1.14642404]
[1753840085048,0.00024843,118170.0,118160.0,1.15488685]
[1753840085482,0.00024843,118170.0,118160.0,1.14642411]
[1753840085689,0.00024843,118170.0,118160.0,1.15488699]
[1753840085902,0.00024843,118170.0,118160.0,1.1633498]
[1753840086110,0.00024843,118170.0,118160.0,1.17181254]
[1753840086304,0.00024843,118170.0,118160.0,1.17181219]
[1753840086569,0.00024843,118170.0,118160.0,1.16334952]
[1753840087400,0.00024843,118170.0,118160.0,1.13796109]
[1753840087816,0.00024843,118170.0,118160.0,1.14642397]
[1753840088075,0.00024843,118170.0,118160.0,1.40056109]
[1753840088245,0.00024843,118170.0,118160.0,1.40056116]
[1753840088546,0.00024843,118170.0,118160.0,0.64869206]
[1753840088747,0.00024843,118170.0,118160.0,0.91452154]
[1753840088940,0.00024843,118170.0,118160.0,0.60448695]
[1753840089210,0.00024843,118170.0,118160.0,0.91452154]
[1753840089435,0.00024843,118170.0,118160.0,0.89654154]
[1753840090078,0.00024843,118170.0,118160.0,1.20853613]
[1753840090317,0.00024843,118170.0,118160.0,1.22453613]
[1753840090567,0.00024843,118170.0,118160.0,0.91450154]
[1753840092462,0.00024843,118170.0,118160.0,0.58910695]
[1753840092694,0.01584843,118170.0,118160.0,0.0924773]
[1753840092943,0.01584843,118170.0,118160.0,0.28533695]
[1753840093143,0.01584843,118170.0,118160.0,0.59537154]
[1753840093361,0.00024843,118170.0,118160.0,0.30982695]
[1753840093574,0.00024843,118170.0,118160.0,0.63517154]
[1753840094257,0.00024843,118170.0,118160.0,0.63017154]
[1753840094458,0.00024843,118170.0,118160.0,0.63417154]
[1753840094864,0.00024843,118170.0,118160.0,0.65153154]
[1753840095820,0.00024843,118170.0,118160.0,0.34149695]
[1753840096033,0.00024843,118170.0,118160.0,0.65153154]
[1753840098332,0.00024843,118170.0,118160.0,0.65353154]
[1753840099739,0.00024843,118170.0,118160.0,0.32809695]
[1753840099942,0.00024843,118170.0,118160.0,0.63813154]
[1753840100796,0.00024843,118170.0,118160.0,0.32809695]
[1753840100995,0.00024843,118170.0,118160.0,0.63813154]
[1753840101195,0.00024843,118170.0,118160.0,0.32809695]
[1753840101472,0.00024843,118170.0,118160.0,0.63813154]
[1753840101696,0.00024843,118170.0,118160.0,0.65403154]
[1753840102339,0.00024843,118170.0,118160.0,0.82329355]
[1753840102542,0.00024843,118170.0,118160.0,1.13332814]
[1753840102966,0.00024843,118170.0,118160.0,0.82329355]
[1753840103583,0.00024843,118170.0,118160.0,0.82129355]
[1753840104005,0.00024843,118170.0,118160.0,0.65203154]
[1753840104439,0.00024843,118170.0,118160.0,0.64803154]
[1753840104947,0.00024843,118170.0,118160.0,0.65303154]
[1753840105619,0.00024843,118170.0,118160.0,0.65603154]
[1753840107315,0.00024843,118170.0,118160.0,0.34599695]
[1753840107520,0.00024843,118170.0,118160.0,0.65603154]
[1753840108889,0.00024843,118170.0,118160.0,0.91863154]
[1753840110006,0.00024843,118170.0,118160.0,0.87373149]
[1753840110228,0.00024843,118170.0,118160.0,0.91863154]
[1753840115563,0.00024843,118170.0,118160.0,0.60859695]
[1753840115775,0.00024843,118170.0,118160.0,0.91863154]
[1753840115979,0.00024843,118170.0,118160.0,0.60859695]
[1753840116194,0.00024843,118170.0,118160.0,0.87373149]
[1753840116392,0.00024843,118170.0,118160.0,0.91863154]
[1753840118125,0.00024843,118170.0,118160.0,0.60859695]
[1753840118364,0.00024843,118170.0,118160.0,0.91863154]
[1753840119973,0.00024843,118170.0,118160.0,0.60859695]
[1753840120205,0.00024843,118170.0,118160.0,0.91863154]
[1753840126711,0.00024843,118170.0,118160.0,0.60859695]
[1753840126930,0.00024843,118170.0,118160.0,0.91863154]
[1753840127137,0.00024843,118170.0,118160.0,0.60859695]
[1753840127354,0.00024843,118170.0,118160.0,0.91863154]
[1753840127782,0.00024843,118170.0,118160.0,0.45861695]
[1753840128003,0.01574843,118170.0,118160.0,0.57154695]
[1753840128447,0.00024843,118170.0,118160.0,0.57154695]
[1753840128650,0.00024843,118170.0,118160.0,0.56854695]
[1753840128866,0.00024843,118170.0,118160.0,0.88177154]
[1753840129078,0.00024843,118170.0,118160.0,0.56673695]
[1753840129290,0.00024843,118170.0,118160.0,0.87677154]
[1753840129521,0.00024843,118170.0,118160.0,0.87877154]
[1753840129764,0.00024843,118170.0,118160.0,0.56873695]
[1753840129997,0.00024843,118170.0,118160.0,0.87877154]
[1753840130481,0.00024843,118170.0,118160.0,0.89666154]
[1753840130938,0.00024843,118170.0,118160.0,0.90066154]
[1753840131847,0.00024843,118170.0,118160.0,0.76746154]
[1753840132099,0.00024843,118170.0,118160.0,0.90058154]
[1753840132384,0.00024843,118170.0,118160.0,0.63798154]
[1753840132829,0.00024843,118170.0,118160.0,0.48536154]
[1753840133056,0.00024843,118170.0,118160.0,0.61844154]
[1753840133282,0.00024843,118170.0,118160.0,0.30840695]
[1753840133511,0.00024843,118170.0,118160.0,0.61844154]
[1753840134806,0.00024843,118170.0,118160.0,0.77319177]
[1753840135686,0.00024843,118170.0,118160.0,0.78929177]
[1753840136145,0.00024843,118170.0,118160.0,0.32450695]
[1753840136350,0.00024843,118170.0,118160.0,0.78929177]
[1753840143302,0.00024843,118170.0,118160.0,0.32410695]
[1753840143557,0.00024843,118170.0,118160.0,0.78889177]
[1753840144020,0.00024843,118170.0,118160.0,0.32410695]
[1753840144450,0.00024843,118170.0,118160.0,0.78889177]
[1753840145098,0.00024843,118170.0,118160.0,0.36214936]
[1753840145306,0.00024843,118170.0,118160.0,0.75306177]
[1753840145515,0.00024843,118170.0,118160.0,0.77225177]
[1753840146145,0.00024843,118170.0,118160.0,0.30746695]
[1753840146368,0.00024843,118170.0,118160.0,0.77225177]
[1753840147180,0.00024843,118170.0,118160.0,0.78875177]
[1753840150365,0.00024843,118170.0,118160.0,0.77225177]
[1753840151397,0.00024843,118170.0,118160.0,0.78755177]
[1753840152246,0.00024843,118170.0,118160.0,0.32276695]
[1753840152490,0.00024843,118170.0,118160.0,0.78755177]
[1753840156591,0.00024843,118170.0,118160.0,0.16090735]
[1753840156804,0.23264084,118170.0,118160.0,0.28901695]
[1753840157022,0.24814084,118170.0,118160.0,0.13962735]
[1753840157240,0.24814084,118170.0,118160.0,0.28586695]
[1753840157472,0.01574843,118170.0,118160.0,0.28586695]
[1753840157692,0.01574843,118170.0,118160.0,0.28582695]
[1753840158367,0.00024843,118170.0,118160.0,0.51821936]
[1753840158587,0.00024843,118170.0,118160.0,0.52133936]
[1753840158801,0.00024843,118170.0,118160.0,0.28382695]
[1753840159014,0.00024843,118170.0,118160.0,0.27982695]
[1753840159263,0.00024843,118170.0,118160.0,0.28594695]
[1753840160135,0.00024843,118170.0,118160.0,0.28794695]
[1753840160353,0.24774084,118170.0,118160.0,0.12875695]
[1753840160576,0.25164084,118170.0,118160.0,0.11487735]
[1753840160803,0.24774084,118170.0,118160.0,0.26107695]
[1753840161019,0.01534843,118170.0,118160.0,0.28591695]
[1753840161469,0.24774084,118170.0,118160.0,0.28591695]
[1753840162594,0.24774084,118170.0,118160.0,0.12875695]
[1753840162860,0.25164084,118170.0,118160.0,0.26103695]
[1753840163614,0.25164084,118170.0,118160.0,0.24715735]
[1753840163817,0.59164084,118170.0,118160.0,0.26107695]
[1753840164678,0.59164084,118170.0,118160.0,0.25607695]
[1753840164906,0.35924843,118170.0,118160.0,0.12375695]
[1753840165138,0.66922588,118170.0,118160.0,0.12475695]
[1753840165357,0.66922588,118170.0,118160.0,0.25807695]
[1753840166025,0.35924843,118170.0,118160.0,0.12575695]
[1753840166245,0.35924843,118170.0,118160.0,0.25807695]
[1753840168932,0.35924843,118170.0,118160.0,0.2131769]
[1753840168933,0.67768776,118170.0,118160.0,0.2131769]
[1753840169621,0.66922588,118170.0,118160.0,0.25807695]
[1753840170755,0.66922588,118170.0,118160.0,0.12575695]
[1753840170963,0.66922588,118170.0,118160.0,0.25803695]
[1753840171100,0.66922588,118170.0,118160.0,0.0808569]
[1753840171317,0.68614957,118170.0,118160.0,0.2131369]
[1753840171720,0.67768762,118170.0,118160.0,0.2131369]
[1753840171918,0.68614957,118170.0,118160.0,0.2131369]
[1753840172338,0.69461159,118170.0,118160.0,0.2131369]
[1753840172548,0.77908889,118170.0,118160.0,0.2131369]
[1753840172757,0.70307368,118170.0,118160.0,0.0669773]
[1753840172968,0.7205232,118170.0,118160.0,0.1992573]
[1753840173419,0.89823327,118170.0,118160.0,0.0669773]
[1753840173620,0.87284721,118170.0,118160.0,0.1992573]
[1753840173842,0.9364305,118170.0,118160.0,0.1982573]
[1753840174025,0.9364305,118170.0,118160.0,0.0659773]
[1753840174265,0.9364305,118170.0,118160.0,0.1982173]
[1753840174670,0.71206097,118170.0,118160.0,0.0649773]
[1753840174882,0.72052335,118170.0,118160.0,0.1972173]
[1753840175019,0.71206097,118170.0,118160.0,0.1972173]
[1753840175233,0.72052335,118170.0,118160.0,0.1972173]
[1753840176632,0.71206097,118170.0,118160.0,0.1972173]
[1753840176885,0.80500058,118170.0,118160.0,0.1971373]
[1753840178294,0.72052328,118170.0,118160.0,0.1971373]
[1753840178527,0.40208352,118170.0,118160.0,0.1971373]
[1753840178735,0.71206097,118170.0,118160.0,0.1971373]
[1753840180138,0.88130923,118170.0,118160.0,0.13216]
[1753840180357,0.4019378,118160.0,118140.0,0.07286005]
[1753840180572,0.40193788,118160.0,118150.0,0.0844773]
[1753840180828,0.72037792,118160.0,118150.0,0.0844773]
[1753840181031,0.41040047,118160.0,118150.0,0.0844773]
[1753840181251,0.71191482,118160.0,118150.0,0.0983569]
[1753840181496,0.71191482,118160.0,118150.0,0.0844773]
[1753840181974,0.72037792,118160.0,118150.0,0.0844773]
[1753840182186,0.70345187,118160.0,118150.0,0.0983569]
[1753840182401,0.71191482,118160.0,118150.0,0.0844773]
[1753840182609,0.72037792,118160.0,118150.0,0.0844773]
[1753840182823,0.71191482,118160.0,118150.0,0.0844773]
[1753840183252,0.70345187,118160.0,118150.0,0.0844773]
[1753840183467,0.70345187,118160.0,118150.0,0.0983569]
[1753840183695,0.39347442,118160.0,118150.0,0.0983569]
[1753840183907,0.71191475,118160.0,118150.0,0.1231969]
[1753840184117,0.70345187,118160.0,118150.0,0.1231969]
[1753840184348,0.69498906,118160.0,118150.0,0.1231969]
[1753840184573,0.6995518,118160.0,118150.0,0.1231969]
[1753840184784,0.7164777,118160.0,118150.0,0.1231969]
[1753840185202,0.70801468,118160.0,118150.0,0.1231969]
[1753840185893,0.6995518,118160.0,118150.0,0.1231969]
[1753840186238,0.70801468,118160.0,118150.0,0.1231969]
[1753840186661,0.70801468,118160.0,118150.0,0.1093173]
[1753840186863,0.86314809,118160.0,118150.0,0.1231969]
[1753840187065,0.39803716,118160.0,118150.0,0.1231969]
[1753840187266,0.85468521,118160.0,118150.0,0.1231969]
[1753840187804,0.85468521,118160.0,118150.0,0.0387196]
[1753840188036,0.86314802,118160.0,118150.0,0.0387196]
[1753840188685,0.85468521,118160.0,118150.0,0.0387196]
[1753840189158,0.38111161,118160.0,118150.0,0.0387196]
[1753840189393,0.38111161,118160.0,118150.0,0.0419496]
[1753840189394,0.82255988,118160.0,118150.0,0.0419496]
[1753840190510,0.83102233,118160.0,118150.0,0.0419496]
[1753840190730,0.83102233,118160.0,118150.0,0.0138796]
[1753840190967,0.86354759,118160.0,118150.0,0.0138796]
[1753840191156,0.86354759,118160.0,118140.0,0.23406965]
[1753840191362,0.77125497,118160.0,118150.0,0.0138796]
[1753840191572,0.72393227,118160.0,118150.0,0.0138796]
[1753840192242,0.63099209,118160.0,118150.0,0.0138796]
[1753840192659,0.87201026,118160.0,118140.0,0.31854695]
[1753840192877,0.63945483,118160.0,118150.0,0.0138796]
[1753840193093,0.63099209,118160.0,118150.0,0.0387396]
[1753840193796,0.38997399,118160.0,118150.0,0.0387396]
[1753840194217,0.85508485,118160.0,118150.0,0.0387396]
[1753840194430,0.86354752,118160.0,118150.0,0.0387396]
[1753840194875,0.92678349,118160.0,118150.0,0.0387396]
[1753840195308,0.86354752,118160.0,118150.0,0.0387396]
[1753840195528,0.85508485,118160.0,118150.0,0.0387396]
[1753840195748,0.38997399,118160.0,118150.0,0.0387396]
[1753840195964,0.35744902,118160.0,118150.0,0.0419696]
[1753840196211,0.5984669,118160.0,118150.0,0.0576696]
[1753840196428,0.35744902,118160.0,118150.0,0.0596596]
[1753840196649,0.59000445,118160.0,118150.0,0.0596596]
[1753840196875,0.59846697,118160.0,118150.0,0.0596596]
[1753840197326,0.35744902,118160.0,118150.0,0.0596596]
[1753840197545,0.8310224,118160.0,118150.0,0.0596596]
[1753840197768,0.8310224,118160.0,118150.0,0.0576696]
[1753840197992,0.00846324,118150.0,118140.0,0.1440673]
[1753840198218,0.26693107,118150.0,118140.0,0.2585269]
[1753840198654,0.26693107,118150.0,118140.0,0.2446473]
[1753840198878,0.44091997,118150.0,118140.0,0.2585269]
[1753840199100,0.35644267,118150.0,118140.0,0.2585269]
[1753840199317,0.35644267,118150.0,118140.0,0.2595269]
[1753840199753,0.3649062,118150.0,118140.0,0.2595269]
[1753840199986,0.34797929,118150.0,118140.0,0.1708196]
[1753840200209,0.35644267,118150.0,118140.0,0.1708196]
[1753840200438,0.45784724,118150.0,118140.0,0.02486]
[1753840200699,0.34,118140.0,118130.0,0.24930965]
[1753840200924,0.34,118140.0,118130.0,0.33577695]
[1753840200925,0.65012589,118140.0,118130.0,0.33577695]
[1753840201365,0.34,118140.0,118130.0,0.33577695]
[1753840201645,0.65012589,118140.0,118130.0,0.33577695]
[1753840201865,0.34,118140.0,118130.0,0.33577695]
[1753840202082,0.65012589,118140.0,118130.0,0.20373695]
[1753840202270,0.65012589,118140.0,118130.0,0.33589695]
[1753840202473,0.65012589,118140.0,118130.0,0.33689695]
[1753840202693,0.65012589,118140.0,118130.0,0.20473695]
[1753840202897,0.73460319,118140.0,118130.0,0.20473695]
[1753840203108,0.73460319,118140.0,118130.0,0.32405735]
[1753840203316,0.69296713,118140.0,118130.0,0.2467673]
[1753840203536,0.69296713,118140.0,118130.0,0.1145673]
[1753840203758,0.70143144,118140.0,118130.0,0.02686]
[1753840203968,0.7098959,118140.0,118130.0,0.02686]
[1753840204179,0.7943732,118140.0,118130.0,0.02686]
[1753840204391,0.77744443,118140.0,118130.0,0.02686]